fUSD/lending_fUSD_20240121
["ID","MTS","AMOUNT","RATE_DAILY","PERIOD"]
[312416940,1705863126873,-500.0,0.00044383,31]
[312416941,1705863126883,-1374.73,0.00044383,31]
[312416942,1705863126892,-1208.34,0.00044383,31]
[312416943,1705863126901,-1371.39,0.00044383,31]
[312416944,1705863126910,-820.18,0.00044383,31]
[312416945,1705863126920,-1442.91,0.00044383,31]
[312416946,1705863126929,-706.05,0.00044383,31]
[312416947,1705863126939,-500.0,0.00044383,31]
[312416948,1705863126949,-669.79,0.00044383,31]
[312416949,1705863126958,-875.23,0.00044383,31]
[312416950,1705863126968,-500.0,0.00044383,31]
[312416951,1705863126978,-2071.44,0.00044383,31]
[312416952,1705863126988,-901.63,0.00044383,31]
[312416953,1705863126997,-2613.26,0.00044383,7]
[312416954,1705863127007,-500.0,0.00044383,31]
[312416955,1705863127016,-2191.06,0.00044383,7]
[312416956,1705863127026,-238.38800559,0.00044383,31]
[312416957,1705863127036,-500.0,0.00044383,31]
[312416958,1705863127045,-500.0,0.00044383,31]
[312416959,1705863127055,-641.54,0.00044383,31]
[312416960,1705863127065,-1341.6,0.00044383,2]
[312416961,1705863127073,-1346.51,0.00044383,31]
[312416962,1705863127083,-500.0,0.00044383,31]
[312416963,1705863127093,-500.0,0.00044383,31]
[312416964,1705863127102,-500.0,0.00044383,31]
[312416965,1705863127112,-500.0,0.00044383,31]
[312416966,1705863127122,-500.0,0.00044383,31]
[312416967,1705863127131,-504.02,0.00044383,31]
[312416968,1705863127140,-504.43,0.00044383,31]
[312416969,1705863127150,-588.19,0.00044383,31]
[312416970,1705863127159,-787.71,0.00044383,31]
[312416971,1705863127169,-500.0,0.00044383,31]
[312416972,1705863127178,-659.24,0.00044383,31]
[312416973,1705863127188,-500.0,0.00044383,31]
[312416974,1705863127197,-646.69,0.00044383,31]
[312416975,1705863127207,-653.73,0.00044383,31]
[312416976,1705863127216,-500.0,0.00044383,31]
[312416977,1705863127225,-1246.47,0.00044383,31]
[312416978,1705863127234,-970.62,0.00044383,31]
[312416979,1705863127244,-1282.6,0.00044383,31]
[312416980,1705863127253,-1439.07,0.00044383,31]
[312416981,1705863127263,-500.0,0.00044383,31]
[312416982,1705863127273,-500.0,0.00044383,31]
[312416983,1705863127282,-884.92,0.00044383,31]
[312416984,1705863127292,-500.0,0.00044383,31]
[312416985,1705863127301,-601.71,0.00044383,31]
[312416986,1705863127310,-631.29,0.00044383,31]
[312416987,1705863127320,-500.0,0.00044383,31]
[312416988,1705863127329,-658.35,0.00044383,31]
[312416989,1705863127339,-1363.05,0.00044383,31]
[312416990,1705863127348,-500.0,0.00044383,31]
[312416991,1705863127357,-500.0,0.00044383,31]
[312416992,1705863127367,-1376.75,0.00044383,31]
[312416993,1705863127376,-629.5,0.00044383,31]
[312416994,1705863127386,-734.65,0.00044383,31]
[312416995,1705863127395,-878.27,0.00044383,31]
[312416996,1705863127404,-1485.3,0.00044383,31]
[312416997,1705863127414,-500.0,0.00044383,31]
[312416998,1705863127423,-500.0,0.00044383,31]
[312416999,1705863127433,-500.0,0.00044383,31]
[312417000,1705863127442,-500.0,0.00044383,31]
[312417001,1705863127452,-500.0,0.00044383,31]
[312417002,1705863127461,-500.0,0.00044383,31]
[312417003,1705863127470,-269.58,0.00044383,31]
[312417004,1705863127480,-1460.98,0.00044383,31]
[312417005,1705863127489,-795.53,0.00044383,31]
[312417006,1705863127499,-500.0,0.00044383,31]
[312417007,1705863127508,-500.0,0.00044383,31]
[312417008,1705863127517,-582.97,0.00044383,31]
[312417009,1705863127527,-500.0,0.00044383,31]
[312417010,1705863127536,-1823.96,0.00044383,31]
[312417011,1705863127545,-500.0,0.00044383,31]
[312417012,1705863127555,-500.0,0.00044383,31]
[312417013,1705863127564,-1800.49,0.00044383,31]
[312417014,1705863127574,-500.0,0.00044383,31]
[312417015,1705863127583,-752.24,0.00044383,31]
[312417016,1705863127593,-750.82,0.00044383,31]
[312417017,1705863127602,-500.0,0.00044383,31]
[312417018,1705863127611,-500.0,0.00044383,31]
[312417019,1705863127621,-1200.05,0.00044383,31]
[312417020,1705863127630,-500.0,0.00044383,31]
[312417021,1705863127639,-1143.39,0.00044383,31]
[312417022,1705863127648,-798.25,0.00044383,31]
[312417023,1705863127657,-795.6,0.00044383,31]
[312417024,1705863127671,-500.0,0.00044383,31]
[312417025,1705863127680,-500.0,0.00044383,31]
[312417026,1705863127690,-834.82,0.00044383,31]
[312417027,1705863127700,-687.25,0.00044383,31]
[312417028,1705863127710,-500.0,0.00044383,31]
[312417029,1705863127719,-625.95,0.00044383,31]
[312417030,1705863127728,-500.0,0.00044383,31]
[312417031,1705863127737,-5545.7,0.00044383,31]
[312417032,1705863127746,-654.82,0.00044383,31]
[312417033,1705863127756,-500.0,0.00044383,31]
[312417034,1705863127765,-500.0,0.00044383,31]
[312417035,1705863127775,-627.52,0.00044383,31]
[312417036,1705863127785,-500.0,0.00044383,31]
[312417037,1705863127795,-500.0,0.00044383,31]
[312417038,1705863127805,-730.39,0.00044383,31]
[312417039,1705863127815,-500.0,0.00044383,31]
[312417040,1705863127824,-3338.13,0.00044383,31]
[312417041,1705863127834,-500.0,0.00044383,31]
[312417042,1705863127844,-545.27,0.00044383,31]
[312417043,1705863127853,-764.44,0.00044383,31]
[312417044,1705863127863,-1998.81,0.00044383,31]
[312417045,1705863127873,-1296.18,0.00044383,31]
[312417046,1705863127883,-17260.95,0.00044383,31]
[312417047,1705863127892,-1596.09,0.00044383,31]
[312417048,1705863127901,-708.09,0.00044383,31]
[312417049,1705863127910,-898.19,0.00044383,31]
[312417050,1705863127919,-500.0,0.00044383,31]
[312417051,1705863127928,-570.27,0.00044383,31]
[312417052,1705863127938,-5449.29,0.00044383,31]
[312417053,1705863127948,-2144.35,0.00044383,31]
[312417054,1705863127957,-500.0,0.00044383,31]
[312417055,1705863127966,-513.35784622,0.00044383,31]
[312417056,1705863127976,-500.0,0.00044383,31]
[312417057,1705863127985,-602.09,0.00044383,31]
[312417058,1705863127994,-501.79,0.00044383,31]
[312417059,1705863128004,-500.0,0.00044383,31]
[312417060,1705863128013,-500.0,0.00044383,31]
[312417061,1705863128022,-2566.96,0.00044383,31]
[312417062,1705863128032,-1568.48,0.00044383,31]
[312417063,1705863128042,-754.18,0.00044383,31]
[312417064,1705863128051,-1393.43,0.00044383,31]
[312417065,1705863128060,-14027.91,0.00044383,31]
[312417066,1705863128070,-500.0,0.00044383,31]
[312417067,1705863128079,-500.0,0.00044383,31]
[312417068,1705863128088,-927.78,0.00044383,31]
[312417069,1705863128098,-500.0,0.00044383,31]
[312417070,1705863128107,-500.0,0.00044383,31]
[312417071,1705863128116,-500.0,0.00044383,31]
[312417072,1705863128125,-1492.21,0.00044383,31]
[312417073,1705863128135,-20533.6,0.00044383,31]
[312417074,1705863128144,-866.78,0.00044383,31]
[312417075,1705863128154,-872.52,0.00044383,31]
[312417076,1705863128163,-1000.0,0.00044383,31]
[312417077,1705863128173,-2714.75,0.00044383,31]
[312417078,1705863128182,-500.0,0.00044383,31]
[312417079,1705863128191,-2856.96,0.00044383,31]
[312417080,1705863128200,-500.0,0.00044383,31]
[312417081,1705863128209,-500.0,0.00044383,31]
[312417082,1705863128218,-500.0,0.00044383,31]
[312417083,1705863128227,-522.06045522,0.00044383,31]
[312417084,1705863128237,-618.09,0.00044383,31]
[312417085,1705863128246,-500.0,0.00044383,31]
[312417086,1705863128255,-585.59,0.00044383,31]
[312417087,1705863128264,-838.89,0.00044383,31]
[312417088,1705863128273,-38187.45,0.00044383,31]
[312417089,1705863128284,-500.0,0.00044383,31]
[312417090,1705863128293,-1815.38,0.00044383,31]
[312417091,1705863128303,-3481.81,0.00044383,31]
[312417092,1705863128312,-506.98,0.00044383,31]
[312417093,1705863128321,-5257.49,0.00044383,31]
[312417094,1705863128331,-500.0,0.00044383,31]
[312417095,1705863128342,-500.0,0.00044383,31]
[312417096,1705863128352,-500.0,0.00044383,31]
[312417097,1705863128362,-500.0,0.00044383,31]
[312417098,1705863128371,-500.0,0.00044383,10]
[312417099,1705863128381,-2462.22,0.00044383,31]
[312417100,1705863128391,-522.8,0.00044383,31]
[312417101,1705863128401,-500.0,0.00044383,31]
[312417102,1705863128411,-500.0,0.00044383,31]
[312417103,1705863128421,-2726.66,0.00044383,31]
[312417104,1705863128430,-500.0,0.00044383,31]
[312417105,1705863128440,-519.49814354,0.00044383,31]
[312417106,1705863128449,-500.0,0.00044383,31]
[312417107,1705863128458,-9964.37,0.00044383,31]
[312417108,1705863128468,-4646.58,0.00044383,31]
[312417109,1705863128478,-1256.11,0.00044383,31]
[312417110,1705863128488,-569.32,0.00044383,31]
[312417111,1705863128498,-563.04,0.00044383,31]
[312417112,1705863128507,-1625.17,0.00044383,31]
[312417113,1705863128517,-1597.74,0.00044383,31]
[312417114,1705863128528,-1521.04,0.00044383,31]
[312417115,1705863128537,-945.78,0.00044383,31]
[312417116,1705863128547,-544.69,0.00044383,31]
[312417117,1705863128556,-1325.95,0.00044383,31]
[312417118,1705863128566,-1638.27,0.00044383,31]
[312417119,1705863128575,-722.86,0.00044383,31]
[312417120,1705863128584,-2479.49,0.00044383,31]
[312417121,1705863128593,-2862.9,0.00044383,31]
[312417122,1705863128603,-781.61,0.00044383,31]
[312417123,1705863128612,-1020.59,0.00044383,31]
[312417124,1705863128622,-500.0,0.00044383,31]
[312417125,1705863128632,-500.0,0.00044383,31]
[312417126,1705863128641,-500.0,0.00044383,31]
[312417127,1705863128651,-13684.18,0.00044383,31]
[312417128,1705863128661,-500.0,0.00044383,31]
[312417129,1705863128671,-688.84,0.00044383,31]
[312417130,1705863128684,-1661.63,0.00044383,31]
[312417131,1705863128693,-500.0,0.00044383,31]
[312417132,1705863128703,-4867.58,0.00044383,31]
[312417133,1705863128713,-2128.7,0.00044383,31]
[312417134,1705863128724,-2953.84,0.00044383,31]
[312417135,1705863128733,-500.0,0.00044383,31]
[312417136,1705863128742,-500.0,0.00044383,31]
[312417137,1705863128753,-500.0,0.00044383,31]
[312417138,1705863128763,-3193.31,0.00044383,31]
[312417139,1705863128773,-687.4,0.00044383,31]
[312417140,1705863128784,-1215.74,0.00044383,31]
[312417141,1705863128793,-500.0,0.00044383,31]
[312417142,1705863128803,-500.0,0.00044383,31]
[312417143,1705863128812,-3100.08,0.00044383,31]
[312417144,1705863128821,-518.29189868,0.00044383,31]
[312417145,1705863128831,-1445.08,0.00044383,31]
[312417146,1705863128840,-500.0,0.00044383,31]
[312417147,1705863128849,-500.0,0.00044383,31]
[312417148,1705863128859,-4139.67,0.00044383,31]
[312417149,1705863128868,-598.34,0.00044383,31]
[312417150,1705863128877,-916.15,0.00044383,31]
[312417151,1705863128886,-500.0,0.00044383,31]
[312417152,1705863128896,-500.0,0.00044383,31]
[312417153,1705863128904,-500.0,0.00044383,31]
[312417154,1705863128914,-710.29,0.00044383,31]
[312417155,1705863128923,-5676.64,0.00044383,31]
[312417156,1705863128932,-2001.23,0.00044383,31]
[312417157,1705863128942,-2149.06,0.00044383,31]
[312417158,1705863128951,-940.56,0.00044383,31]
[312417159,1705863128961,-500.0,0.00044383,31]
[312417160,1705863128970,-4833.56,0.00044383,31]
[312417161,1705863128979,-506.94,0.00044383,31]
[312417162,1705863128989,-970.56,0.00044383,31]
[312417163,1705863128999,-2423.36,0.00044383,31]
[312417164,1705863129008,-1219.52,0.00044383,31]
[312417165,1705863129018,-1862.24,0.00044383,31]
[312417166,1705863129028,-500.0,0.00044383,31]
[312417167,1705863129037,-500.0,0.00044383,31]
[312417168,1705863129046,-219.13829406,0.00044383,31]
[312417169,1705863129056,-1187.95,0.00044383,31]
[312417170,1705863129065,-1829.93,0.00044383,31]
[312417171,1705863129075,-500.0,0.00044383,31]
[312417172,1705863129085,-578.39,0.00044383,31]
[312417173,1705863129094,-14384.99,0.00044383,31]
[312417174,1705863129102,-1213.94,0.00044383,31]
[312417175,1705863129112,-639.46,0.00044383,31]
[312417176,1705863129121,-709.99,0.00044383,31]
[312417177,1705863129131,-625.46,0.00044383,31]
[312417178,1705863129140,-405.31430548,0.00044383,31]
[312417179,1705863129150,-3268.88,0.00044383,31]
[312417180,1705863129160,-648.75,0.00044383,31]
[312417181,1705863129169,-975.48,0.00044383,31]
[312417182,1705863129179,-755.56,0.00044383,31]
[312417183,1705863129189,-500.0,0.00044383,31]
[312417184,1705863129199,-2329.16,0.00044383,31]
[312417185,1705863129208,-1678.3,0.00044383,31]
[312417186,1705863129218,-500.0,0.00044383,31]
[312417187,1705863129227,-558.66,0.00044383,31]
[312417188,1705863129237,-1401.81,0.00044383,31]
[312417189,1705863129247,-500.0,0.00044383,31]
[312417190,1705863129257,-1639.58,0.00044383,31]
[312417191,1705863129266,-894.48,0.00044383,31]
[312417192,1705863129277,-687.4,0.00044383,31]
[312417193,1705863129286,-1615.83,0.00044383,31]
[312417194,1705863129299,-1087.01,0.00044383,31]
[312417195,1705863129308,-500.0,0.00044383,31]
[312417196,1705863129318,-1031.2,0.00044383,31]
[312417197,1705863129328,-531.01,0.00044383,31]
[312417198,1705863129338,-2511.72,0.00044383,31]
[312417199,1705863129348,-1748.22,0.00044383,31]
[312417200,1705863129357,-4456.07,0.00044383,31]
[312417201,1705863129367,-500.0,0.00044383,31]
[312417202,1705863129376,-500.0,0.00044383,31]
[312417203,1705863129386,-500.0,0.00044383,31]
[312417204,1705863129395,-579.06,0.00044383,31]
[312417205,1705863129404,-3850.98,0.00044383,31]
[312417206,1705863129414,-3629.07,0.00044383,31]
[312417207,1705863129423,-500.0,0.00044383,31]
[312417208,1705863129432,-726.07,0.00044383,31]
[312417209,1705863129441,-5194.93,0.00044383,31]
[312417210,1705863129451,-1150.49,0.00044383,31]
[312417211,1705863129461,-3411.41,0.00044383,31]
[312417212,1705863129471,-3377.74,0.00044383,31]
[312417213,1705863129481,-1943.47,0.00044383,31]
[312417214,1705863129491,-1108.56,0.00044383,31]
[312417215,1705863129500,-500.0,0.00044383,31]
[312417216,1705863129510,-500.0,0.00044383,31]
[312417217,1705863129519,-620.5,0.00044383,31]
[312417218,1705863129530,-1379.23,0.00044383,31]
[312417219,1705863129540,-965.9,0.00044383,31]
[312417220,1705863129550,-825.6,0.00044383,31]
[312417221,1705863129560,-3791.82,0.00044383,31]
[312417222,1705863129570,-1532.88,0.00044383,31]
[312417223,1705863129580,-1797.81,0.00044383,31]
[312417224,1705863129590,-5971.46,0.00044383,31]
[312417225,1705863129599,-500.0,0.00044383,31]
[312417226,1705863129609,-543.96811418,0.00044383,31]
[312417227,1705863129617,-500.0,0.00044383,31]
[312417228,1705863129627,-500.0,0.00044383,31]
[312417229,1705863129637,-597.64,0.00044383,31]
[312417230,1705863129646,-554.71,0.00044383,31]
[312417231,1705863129655,-843.24,0.00044383,31]
[312417232,1705863129665,-505.05,0.00044383,31]
[312417233,1705863129678,-500.0,0.00044383,31]
[312417234,1705863129689,-1011.31,0.00044383,31]
[312417235,1705863129700,-500.0,0.00044383,31]
[312417236,1705863129711,-500.0,0.00044383,31]
[312417237,1705863129721,-1242.18,0.00044383,31]
[312417238,1705863129730,-500.0,0.00044383,60]
[312417239,1705863129740,-31979.27,0.00044383,31]
[312417240,1705863129750,-500.0,0.00044383,15]
[312417241,1705863129762,-1802.54,0.00044383,31]
[312417242,1705863129772,-500.0,0.00044383,31]
[312417243,1705863129781,-724.71,0.00044383,31]
[312417244,1705863129791,-2046.63,0.00044383,31]
[312417245,1705863129800,-1209.74,0.00044383,31]
[312417246,1705863129809,-1903.42,0.00044383,31]
[312417247,1705863129819,-4903.09,0.00044383,31]
[312417248,1705863129829,-500.0,0.00044383,31]
[312417249,1705863129838,-1146.65,0.00044383,31]
[312417250,1705863129848,-2442.87,0.00044383,31]
[312417251,1705863129858,-500.0,0.00044383,31]
[312417252,1705863129868,-2526.05,0.00044383,31]
[312417253,1705863129877,-2162.48,0.00044383,31]
[312417254,1705863129887,-1626.96,0.00044383,31]
[312417255,1705863129897,-1000.0,0.00044383,2]
[312417256,1705863129907,-1812.71,0.00044383,31]
[312417257,1705863129916,-500.0,0.00044383,31]
[312417258,1705863129926,-509.47,0.00044383,31]
[312417259,1705863129936,-807.78,0.00044383,31]
[312417260,1705863129946,-638.08,0.00044383,31]
[312417261,1705863129956,-4768.84,0.00044383,31]
[312417262,1705863129965,-500.0,0.00044383,31]
[312417263,1705863129975,-500.0,0.00044383,31]
[312417264,1705863129985,-500.0,0.00044383,31]
[312417265,1705863129994,-23111.4,0.00044383,31]
[312417266,1705863130004,-641.88,0.00044383,31]
[312417267,1705863130014,-2345.39,0.00044383,31]
[312417268,1705863130023,-1543.52,0.00044383,31]
[312417269,1705863130033,-500.0,0.00044383,31]
[312417270,1705863130043,-2539.24,0.00044383,31]
[312417271,1705863130053,-4085.26,0.00044383,31]
[312417272,1705863130063,-500.0,0.00044383,31]
[312417273,1705863130304,-500.0,0.00044383,2]
[312417274,1705863130314,-500.0,0.00044383,31]
[312417275,1705863130324,-1053.53,0.00044383,31]
[312417276,1705863130334,-500.0,0.00044383,31]
[312417277,1705863130343,-1444.4,0.00044383,31]
[312417278,1705863130354,-1203.58,0.00044383,31]
[312417279,1705863130364,-8334.75,0.00044383,31]
[312417280,1705863130373,-1170.03,0.00044383,31]
[312417281,1705863130383,-3868.82,0.00044383,31]
[312417282,1705863130393,-1290.9,0.00044383,31]
[312417283,1705863130403,-751.65,0.00044383,31]
[312417284,1705863130413,-2604.67,0.00044383,31]
[312417285,1705863130422,-500.0,0.00044383,31]
[312417286,1705863130432,-879.17,0.00044383,31]
[312417287,1705863130441,-702.2,0.00044383,31]
[312417288,1705863130451,-1512.38,0.00044383,31]
[312417289,1705863130461,-500.0,0.00044383,31]
[312417290,1705863130470,-583.6715395,0.00044383,31]
[312417291,1705863130480,-3891.13,0.00044383,31]
[312417292,1705863130491,-500.0,0.00044383,31]
[312417293,1705863130501,-4210.98,0.00044383,31]
[312417294,1705863130510,-500.0,0.00044383,31]
[312417295,1705863130520,-1010.5,0.00044383,31]
[312417296,1705863130530,-500.0,0.00044383,31]
[312417297,1705863130539,-5113.55,0.00044383,31]
[312417298,1705863130548,-5553.41,0.00044383,31]
[312417299,1705863130558,-500.0,0.00044383,31]
[312417300,1705863130567,-2021.88,0.00044383,31]
[312417301,1705863130576,-831.35,0.00044383,31]
[312417302,1705863130586,-500.0,0.00044383,31]
[312417303,1705863130596,-500.0,0.00044383,31]
[312417304,1705863130605,-1451.78,0.00044383,31]
[312417305,1705863130615,-2047.15,0.00044383,31]
[312417306,1705863130625,-500.0,0.00044383,31]
[312417307,1705863130635,-500.0,0.00044383,31]
[312417308,1705863130646,-500.0,0.00044383,31]
[312417309,1705863130656,-928.47,0.00044383,31]
[312417310,1705863130669,-1645.64,0.00044383,31]
[312417311,1705863130679,-1009.2,0.00044383,31]
[312417312,1705863130689,-1721.6,0.00044383,31]
[312417313,1705863130699,-507.02,0.00044383,31]
[312417314,1705863130710,-500.0,0.00044383,31]
[312417315,1705863130721,-833.04,0.00044383,31]
[312417316,1705863130731,-500.0,0.00044383,31]
[312417317,1705863130740,-853.75,0.00044383,31]
[312417318,1705863130751,-3752.11,0.00044383,31]
[312417319,1705863130761,-2604.2,0.00044383,31]
[312417320,1705863130771,-1139.83,0.00044383,31]
[312417321,1705863130780,-1000.0,0.00044383,30]
[312417322,1705863130789,-3344.19,0.00044383,31]
[312417323,1705863130799,-656.95,0.00044383,31]
[312417324,1705863130808,-500.0,0.00044383,31]
[312417325,1705863130817,-500.0,0.00044383,31]
[312417326,1705863130827,-1369.33,0.00044383,31]
[312417327,1705863130837,-500.0,0.00044383,31]
[312417328,1705863130847,-500.0,0.00044383,31]
[312417329,1705863130857,-2125.69,0.00044383,31]
[312417330,1705863130866,-2177.35,0.00044383,31]
[312417331,1705863130876,-523.94,0.00044383,31]
[312417332,1705863130886,-1442.9,0.00044383,31]
[312417333,1705863130896,-1712.99,0.00044383,31]
[312417334,1705863130906,-500.0,0.00044383,31]
[312417335,1705863130915,-1404.4,0.00044383,31]
[312417336,1705863130925,-500.0,0.00044383,31]
[312417337,1705863130935,-500.0,0.00044383,31]
[312417338,1705863130944,-500.0,0.00044383,31]
[312417339,1705863130954,-504.9,0.00044383,31]
[312417340,1705863130964,-1360.45,0.00044383,31]
[312417341,1705863130973,-500.0,0.00044383,31]
[312417342,1705863130985,-989.76,0.00044383,31]
[312417343,1705863130994,-500.0,0.00044383,31]
[312417344,1705863131003,-2806.49,0.00044383,31]
[312417345,1705863131012,-1242.78,0.00044383,31]
[312417346,1705863131022,-10132.2,0.00044383,31]
[312417347,1705863131032,-500.0,0.00044383,31]
[312417348,1705863131043,-627.09,0.00044383,31]
[312417349,1705863131052,-2496.9,0.00044383,31]
[312417350,1705863131062,-500.0,0.00044383,31]
[312417351,1705863131073,-3890.38,0.00044383,31]
[312417352,1705863131082,-1097.31,0.00044383,31]
[312417353,1705863131092,-500.0,0.00044383,31]
[312417354,1705863131102,-4035.88,0.00044383,31]
[312417355,1705863131204,-1353.68,0.00044383,31]
[312417356,1705863131215,-10189.15,0.00044383,31]
[312417357,1705863131226,-500.0,0.00044383,31]
[312417358,1705863131237,-775.43,0.00044383,31]
[312417359,1705863131246,-4930.09,0.00044383,31]
[312417360,1705863131256,-500.0,0.00044383,2]
[312417361,1705863131266,-500.0,0.00044383,31]
[312417362,1705863131276,-500.0,0.00044383,10]
[312417363,1705863131287,-500.0,0.00044383,31]
[312417364,1705863131297,-500.0,0.00044383,31]
[312417365,1705863131307,-4049.62,0.00044383,31]
[312417366,1705863131318,-500.0,0.00044383,31]
[312417367,1705863131328,-678.75,0.00044383,31]
[312417368,1705863131338,-500.0,0.00044383,31]
[312417369,1705863131348,-1229.34,0.00044383,31]
[312417370,1705863131358,-500.0,0.00044383,31]
[312417371,1705863131368,-3443.53,0.00044383,31]
[312417372,1705863131378,-151.0,0.00044383,14]
[312417373,1705863131388,-155.03181256,0.00044388,30]
[312417374,1705863131398,-2600.000001,0.000444,47]
[312417375,1705863131408,-155.03181256,0.00044411,30]
[312417376,1705863131417,-150.0,0.00044415,2]
[312417377,1705863131427,-155.03181256,0.00044416,30]
[312417378,1705863131436,-150.0,0.00044439,2]
[312417379,1705863131446,-151.0,0.00044452,2]
[312417380,1705863131456,-250.49088,0.00044452,2]
[312417381,1705863131465,-150.0,0.00044456,2]
[312417382,1705863131475,-150.0,0.00044461,2]
[312417383,1705863131484,-355.40143417,0.00044468,30]
[312417384,1705863131493,-150.0,0.00044474,2]
[312417385,1705863131503,-355.40143417,0.00044494,30]
[312417386,1705863131513,-30183.66885316,0.00044499,2]
[312417387,1705863131522,-2110.0,0.000445,15]
[312417388,1705863131532,-969.679,0.00044519,2]
[312417389,1705863131541,-426.0,0.00044519,2]
[312417390,1705863131550,-555.529405,0.0004452,9]
[312417391,1705863131560,-152.79566132,0.00044531,30]
[312417392,1705863131569,-500.0,0.0004454,9]
[312417393,1705863131578,-1282.0,0.00044541,30]
[312417394,1705863131587,-313.0,0.00044541,30]
[312417395,1705863131597,-355.40143417,0.00044554,30]
[312417396,1705863131607,-150.0,0.00044559,2]
[312417397,1705863131616,-500.0,0.0004456,9]
[312417398,1705863131625,-219.68112856,0.00044575,30]
[312417399,1705863131635,-178.81599619,0.00044575,30]
[312417400,1705863131645,-359.23512276,0.00044575,30]
[312417401,1705863131655,-500.0,0.0004458,9]
[312417402,1705863131664,-239.17956327,0.00044581,2]
[312417403,1705863131675,-500.0,0.000446,9]
[312417404,1705863131686,-1500.0,0.00044617,2]
[312417405,1705863131695,-500.0,0.0004462,9]
[312417406,1705863131705,-150.0,0.0004462,2]
[312417407,1705863131715,-150.0,0.00044621,2]
[312417408,1705863131724,-173.89946186,0.00044625,30]
[312417409,1705863131733,-150.0,0.0004463,2]
[312417410,1705863131742,-2000.04,0.0004464,2]
[312417411,1705863131751,-500.0,0.0004464,9]
[312417412,1705863131762,-164.24481271,0.00044657,30]
[312417413,1705863131772,-500.0,0.0004466,9]
[312417414,1705863131782,-150.0,0.00044671,2]
[312417415,1705863131792,-953.43125265,0.00044672,30]
[312417416,1705863131801,-150.0,0.00044676,2]
[312417417,1705863131810,-150.0,0.00044678,2]
[312417418,1705863131819,-500.0,0.0004468,9]
[312417419,1705863131828,-355.40143417,0.0004469,30]
[312417420,1705863131838,-500.0,0.000447,9]
[312417421,1705863131848,-157.397368,0.00044705,30]
[312417422,1705863131858,-500.0,0.0004472,9]
[312417423,1705863131867,-150.0,0.0004474,2]
[312417424,1705863131876,-500.0,0.0004474,9]
[312417425,1705863131886,-953.43125265,0.0004475,30]
[312417426,1705863131895,-500.0,0.0004476,9]
[312417427,1705863131906,-150.0,0.00044777,2]
[312417428,1705863131915,-500.0,0.0004478,9]
[312417429,1705863131924,-150.0,0.00044782,2]
[312417430,1705863131933,-364.73162279,0.00044787,14]
[312417431,1705863131942,-181.63371409,0.00044787,14]
[312417432,1705863131952,-248.61643646,0.00044787,14]
[312417433,1705863131961,-276.18212841,0.00044787,14]
[312417434,1705863131970,-218.49632604,0.00044787,14]
[312417435,1705863131980,-153.06381515,0.0004479,30]
[312417436,1705863131989,-500.0,0.000448,9]
[312417437,1705863131999,-500.0,0.0004482,10]
[312417438,1705863132008,-150.0,0.00044823,2]
[312417439,1705863132019,-150.0,0.00044838,2]